[Event "*** Titled Tuesday Blitz"]
[Site "Chess.com"]
[Date "2018.12.04"]
[Round "3"]
[White "volcanoexplorer"]
[Black "staz_staz"]
[Result "1-0"]
[WhiteElo "2402"]
[BlackElo "2350"]
[TimeControl "180+2"]
[EndTime "13:39:04 PST"]
[Termination "volcanoexplorer won by resignation"]

1. e4 {[%clk 0:03:01.9]} 1... c5 {[%clk 0:02:57.9]} 2. Nf3 {[%clk 0:03:02.8]}
2... e6 {[%clk 0:02:58.5]} 3. d4 {[%clk 0:03:04]} 3... cxd4 {[%clk 0:03:00.4]}
4. Nxd4 {[%clk 0:03:05.9]} 4... Nf6 {[%clk 0:03:00.6]} 5. Nc3 {[%clk 0:03:07.1]}
5... Nc6 {[%clk 0:02:58.4]} 6. Bg5 {[%clk 0:03:07.5]} 6... Qb6 {[%clk
0:02:51.4]} 7. Nb3 {[%clk 0:02:39.6]} 7... a6 {[%clk 0:02:44.3]} 8. Bd3 {[%clk
0:02:34.5]} 8... d6 {[%clk 0:02:40]} 9. O-O {[%clk 0:02:16.6]} 9... Be7 {[%clk
0:02:39.9]} 10. Be3 {[%clk 0:02:09.2]} 10... Qc7 {[%clk 0:02:40.1]} 11. f4
{[%clk 0:02:09.5]} 11... b5 {[%clk 0:02:39.9]} 12. Qe1 {[%clk 0:01:37.1]} 12...
h5 {[%clk 0:02:26.6]} 13. a3 {[%clk 0:01:24.2]} 13... Bb7 {[%clk 0:02:25.5]} 14.
Rd1 {[%clk 0:01:23.8]} 14... Rc8 {[%clk 0:02:25.3]} 15. h3 {[%clk 0:01:19.7]}
15... h4 {[%clk 0:02:23.2]} 16. Qf2 {[%clk 0:01:15.2]} 16... Nd7 {[%clk
0:02:15.8]} 17. f5 {[%clk 0:01:06]} 17... O-O {[%clk 0:02:04.5]} 18. Nd4 {[%clk
0:00:56.3]} 18... Nxd4 {[%clk 0:01:26.4]} 19. Bxd4 {[%clk 0:00:58.2]} 19... e5
{[%clk 0:01:20]} 20. Be3 {[%clk 0:00:58.7]} 20... Nf6 {[%clk 0:01:20]} 21. Bg5
{[%clk 0:00:58.3]} 21... Rfd8 {[%clk 0:01:15]} 22. Qxh4 {[%clk 0:00:54.3]} 22...
d5 {[%clk 0:01:14.4]} 23. exd5 {[%clk 0:00:42.2]} 23... Bxd5 {[%clk 0:00:33.9]}
24. Nxd5 {[%clk 0:00:36.8]} 24... Rxd5 {[%clk 0:00:35.8]} 25. Kh1 {[%clk
0:00:17.4]} 25... Rcd8 {[%clk 0:00:36.1]} 26. Bxf6 {[%clk 0:00:18.3]} 26... Bxf6
{[%clk 0:00:36.6]} 27. Qh5 {[%clk 0:00:17.6]} 27... e4 {[%clk 0:00:36.9]} 28.
Bxe4 {[%clk 0:00:18.3]} 28... Rxd1 {[%clk 0:00:29.7]} 29. Rxd1 {[%clk
0:00:20.2]} 29... Rxd1+ {[%clk 0:00:30.9]} 30. Qxd1 {[%clk 0:00:22.1]} 30...
Bxb2 {[%clk 0:00:32]} 31. Qd5 {[%clk 0:00:21]} 31... Bxa3 {[%clk 0:00:27.9]} 32.
f6 {[%clk 0:00:22.4]} 32... Qd6 {[%clk 0:00:24.4]} 33. Qa8+ {[%clk 0:00:19.4]}
33... Qf8 {[%clk 0:00:25]} 34. Qxa6 {[%clk 0:00:20.5]} 34... Bc5 {[%clk
0:00:18]} 35. Qxb5 {[%clk 0:00:20.9]} 35... g6 {[%clk 0:00:18.4]} 36. Qc4 {[%clk
0:00:21]} 36... Qd6 {[%clk 0:00:18.6]} 37. Qf1 {[%clk 0:00:10.2]} 37... Qe5
{[%clk 0:00:17.9]} 38. Qf3 {[%clk 0:00:05.3]} 38... Bd6 {[%clk 0:00:17.3]} 39.
Kg1 {[%clk 0:00:05]} 39... Bc5+ {[%clk 0:00:17.5]} 40. Kf1 {[%clk 0:00:05.3]}
40... Qa1+ {[%clk 0:00:18]} 41. Ke2 {[%clk 0:00:06.7]} 41... Qd4 {[%clk
0:00:18.6]} 42. Bd3 {[%clk 0:00:06.7]} 42... Qe5+ {[%clk 0:00:15.2]} 43. Be4
{[%clk 0:00:06.6]} 43... Qd4 {[%clk 0:00:15.9]} 44. g4 {[%clk 0:00:06]} 44...
Bb4 {[%clk 0:00:16.1]} 45. Qd3 {[%clk 0:00:06.5]} 45... Qg1 {[%clk 0:00:16.1]}
46. c3 {[%clk 0:00:04.3]} 46... Bc5 {[%clk 0:00:15.7]} 47. Qf3 {[%clk
0:00:03.8]} 47... Qc1 {[%clk 0:00:15.2]} 48. Kd3 {[%clk 0:00:04.7]} 48... Bf8
{[%clk 0:00:07.7]} 49. Bd5 {[%clk 0:00:05.5]} 49... Qb1+ {[%clk 0:00:08.4]} 50.
Kc4 {[%clk 0:00:05.9]} 50... Qa2+ {[%clk 0:00:08.9]} 51. Kd3 {[%clk 0:00:07.3]}
51... Qb1+ {[%clk 0:00:09.8]} 52. Ke2 {[%clk 0:00:06.5]} 52... Qc2+ {[%clk
0:00:10.5]} 53. Kf1 {[%clk 0:00:07.7]} 53... Qc1+ {[%clk 0:00:11.3]} 54. Kg2
{[%clk 0:00:07.5]} 54... Bc5 {[%clk 0:00:11.5]} 55. Bxf7+ {[%clk 0:00:05.8]}
55... Kxf7 {[%clk 0:00:10.6]} 56. Qd5+ {[%clk 0:00:07]} 56... Kxf6 {[%clk
0:00:10.9]} 57. Qxc5 {[%clk 0:00:08.4]} 57... Qd2+ {[%clk 0:00:12]} 58. Qf2+
{[%clk 0:00:09.5]} 1-0

[Event "*** Titled Tuesday Blitz"]
[Site "Chess.com"]
[Date "2018.12.04"]
[Round "3"]
[White "vinniethepooh"]
[Black "Satscho"]
[Result "1/2-1/2"]
[WhiteElo "2407"]
[BlackElo "2321"]
[TimeControl "180+2"]
[EndTime "13:39:11 PST"]
[Termination "Game drawn by repetition"]

1. d4 {[%clk 0:03:01.9]} 1... Nf6 {[%clk 0:03:00]} 2. c4 {[%clk 0:03:03.4]} 2...
g6 {[%clk 0:03:01.1]} 3. Nc3 {[%clk 0:03:04.3]} 3... Bg7 {[%clk 0:03:02.4]} 4.
e4 {[%clk 0:03:04.6]} 4... d6 {[%clk 0:03:03.9]} 5. Nf3 {[%clk 0:03:05.2]} 5...
O-O {[%clk 0:03:05.4]} 6. Be2 {[%clk 0:03:06.5]} 6... e5 {[%clk 0:03:04.7]} 7.
O-O {[%clk 0:03:07.8]} 7... Nc6 {[%clk 0:03:05.8]} 8. d5 {[%clk 0:03:09.1]} 8...
Ne7 {[%clk 0:03:07.4]} 9. b4 {[%clk 0:03:10.1]} 9... a5 {[%clk 0:03:07.2]} 10.
bxa5 {[%clk 0:03:06.8]} 10... Rxa5 {[%clk 0:03:07.9]} 11. a4 {[%clk 0:03:07.2]}
11... c5 {[%clk 0:03:07.5]} 12. Ra3 {[%clk 0:02:54.8]} 12... Ne8 {[%clk
0:02:58.7]} 13. Qc2 {[%clk 0:02:41.2]} 13... h6 {[%clk 0:02:55.1]} 14. Nd2
{[%clk 0:02:40.6]} 14... f5 {[%clk 0:02:55.6]} 15. exf5 {[%clk 0:02:42.1]} 15...
Nxf5 {[%clk 0:02:55.2]} 16. Nce4 {[%clk 0:02:29.8]} 16... Nd4 {[%clk 0:02:54.3]}
17. Qd1 {[%clk 0:02:29.9]} 17... Bd7 {[%clk 0:02:33.5]} 18. Bg4 {[%clk
0:02:18.7]} 18... Kh7 {[%clk 0:02:04]} 19. Bxd7 {[%clk 0:02:07.3]} 19... Qxd7
{[%clk 0:02:05.9]} 20. Bb2 {[%clk 0:01:54.6]} 20... Bf6 {[%clk 0:01:48]} 21.
Bxd4 {[%clk 0:01:31.8]} 21... exd4 {[%clk 0:01:35.8]} 22. Qb3 {[%clk 0:01:31.3]}
22... Be5 {[%clk 0:01:29.3]} 23. Rb1 {[%clk 0:01:29.9]} 23... Rf7 {[%clk
0:01:29.6]} 24. Qc2 {[%clk 0:01:23.1]} 24... Kg7 {[%clk 0:01:27.7]} 25. Rb5
{[%clk 0:01:19.6]} 25... Ra6 {[%clk 0:01:03.6]} 26. Rf3 {[%clk 0:01:05]} 26...
Bf4 {[%clk 0:00:46.6]} 27. Qb3 {[%clk 0:00:57.5]} 27... Bxd2 {[%clk 0:00:43.8]}
28. Rxf7+ {[%clk 0:00:47.8]} 28... Kxf7 {[%clk 0:00:36.2]} 29. Rxb7 {[%clk
0:00:40.7]} 29... Nc7 {[%clk 0:00:37.2]} 30. Nxd2 {[%clk 0:00:24]} 30... Rxa4
{[%clk 0:00:35.1]} 31. h3 {[%clk 0:00:22.4]} 31... Rb4 {[%clk 0:00:30.1]} 32.
Rxb4 {[%clk 0:00:20.7]} 32... cxb4 {[%clk 0:00:32]} 33. Qxb4 {[%clk 0:00:22.3]}
33... Na6 {[%clk 0:00:33.6]} 34. Qb2 {[%clk 0:00:17.6]} 34... d3 {[%clk
0:00:28.8]} 35. Qd4 {[%clk 0:00:13.4]} 35... Nc5 {[%clk 0:00:29.6]} 36. Qf4+
{[%clk 0:00:11.9]} 36... Kg7 {[%clk 0:00:30.4]} 37. Qe3 {[%clk 0:00:13.2]} 37...
Qf7 {[%clk 0:00:23]} 38. Kh2 {[%clk 0:00:14]} 38... Qf6 {[%clk 0:00:24.1]} 39.
f3 {[%clk 0:00:10.8]} 39... h5 {[%clk 0:00:25.2]} 40. Kg3 {[%clk 0:00:11.2]}
40... Qc3 {[%clk 0:00:15.2]} 41. Qe7+ {[%clk 0:00:10.2]} 41... Kh6 {[%clk
0:00:15.8]} 42. Qe3+ {[%clk 0:00:09.2]} 42... Kg7 {[%clk 0:00:16.2]} 43. h4
{[%clk 0:00:06.1]} 43... Nb3 {[%clk 0:00:15.5]} 44. Qe7+ {[%clk 0:00:06.7]}
44... Kh6 {[%clk 0:00:16.4]} 45. Qe3+ {[%clk 0:00:07.9]} 45... Kg7 {[%clk
0:00:17.2]} 46. Nxb3 {[%clk 0:00:09.3]} 46... Qxb3 {[%clk 0:00:18.3]} 47. Qe7+
{[%clk 0:00:10.1]} 47... Kh6 {[%clk 0:00:19.9]} 48. Qg5+ {[%clk 0:00:11.2]}
48... Kg7 {[%clk 0:00:20.8]} 49. Qe7+ {[%clk 0:00:12.2]} 49... Kh6 {[%clk
0:00:21.9]} 50. Qf8+ {[%clk 0:00:13.7]} 50... Kh7 {[%clk 0:00:23]} 51. Qe7+
{[%clk 0:00:14.4]} 51... Kh6 {[%clk 0:00:22.8]} 52. Qe3+ {[%clk 0:00:15.6]}
52... Kg7 {[%clk 0:00:23.8]} 53. Qd4+ {[%clk 0:00:16.4]} 53... Kh7 {[%clk
0:00:22.4]} 54. Kf4 {[%clk 0:00:08]} 54... Qc2 {[%clk 0:00:13.1]} 55. Qe4 {[%clk
0:00:05.1]} 55... Qc1+ {[%clk 0:00:12.3]} 56. Kg3 {[%clk 0:00:05.5]} 56... d2
{[%clk 0:00:13.8]} 57. Qe7+ {[%clk 0:00:06.5]} 57... Kg8 {[%clk 0:00:14.7]} 58.
Qe8+ {[%clk 0:00:07.6]} 58... Kg7 {[%clk 0:00:16]} 59. Qe7+ {[%clk 0:00:09.1]}
59... Kg8 {[%clk 0:00:17.5]} 60. Qe8+ {[%clk 0:00:10.5]} 60... Kg7 {[%clk
0:00:18.9]} 61. Qe7+ {[%clk 0:00:12]} 61... Kg8 {[%clk 0:00:19.7]} 62. Qe8+
{[%clk 0:00:13.5]} 62... Kg7 {[%clk 0:00:20.4]} 63. Qe7+ {[%clk 0:00:14.9]}
63... Kg8 {[%clk 0:00:21.5]} 1/2-1/2

[Event "*** Titled Tuesday Blitz"]
[Site "Chess.com"]
[Date "2018.12.04"]
[Round "3"]
[White "vanyakuba"]
[Black "SerGo055"]
[Result "1-0"]
[WhiteElo "2360"]
[BlackElo "2445"]
[TimeControl "180+2"]
[EndTime "13:39:25 PST"]
[Termination "vanyakuba won by resignation"]

1. e4 {[%clk 0:03:01.9]} 1... d5 {[%clk 0:02:59.5]} 2. exd5 {[%clk 0:03:02.7]}
2... Nf6 {[%clk 0:03:00.6]} 3. d4 {[%clk 0:02:59.4]} 3... Qxd5 {[%clk
0:03:00.6]} 4. Nc3 {[%clk 0:02:58.2]} 4... Qd8 {[%clk 0:03:00.9]} 5. Nf3 {[%clk
0:02:56.1]} 5... c6 {[%clk 0:03:00.1]} 6. Bc4 {[%clk 0:02:54.6]} 6... Bf5 {[%clk
0:03:00.8]} 7. h3 {[%clk 0:02:39.4]} 7... e6 {[%clk 0:03:00.2]} 8. Qe2 {[%clk
0:02:39.9]} 8... Be7 {[%clk 0:03:00.3]} 9. O-O {[%clk 0:02:36]} 9... O-O {[%clk
0:03:00.8]} 10. Bg5 {[%clk 0:02:31.1]} 10... Nbd7 {[%clk 0:02:50.6]} 11. Rad1
{[%clk 0:02:29.5]} 11... b5 {[%clk 0:02:39.9]} 12. Bb3 {[%clk 0:02:28.6]} 12...
a5 {[%clk 0:02:40.1]} 13. a3 {[%clk 0:02:18.1]} 13... a4 {[%clk 0:02:31.5]} 14.
Ba2 {[%clk 0:02:18.8]} 14... Nb6 {[%clk 0:02:30.2]} 15. Ne5 {[%clk 0:02:15.6]}
15... Rc8 {[%clk 0:02:29]} 16. Bxf6 {[%clk 0:01:52.9]} 16... Bxf6 {[%clk
0:02:27]} 17. Ne4 {[%clk 0:01:53.8]} 17... Bxe4 {[%clk 0:02:07.2]} 18. Qxe4
{[%clk 0:01:53.6]} 18... Nd5 {[%clk 0:02:06.6]} 19. c3 {[%clk 0:01:48.9]} 19...
Bxe5 {[%clk 0:02:02.9]} 20. dxe5 {[%clk 0:01:42.5]} 20... Qg5 {[%clk 0:01:58.3]}
21. g3 {[%clk 0:01:38]} 21... Rfd8 {[%clk 0:01:53.5]} 22. h4 {[%clk 0:01:35.7]}
22... Qg6 {[%clk 0:01:53.2]} 23. Bb1 {[%clk 0:01:15.1]} 23... Qxe4 {[%clk
0:01:49.1]} 24. Bxe4 {[%clk 0:01:17]} 24... h6 {[%clk 0:01:43.9]} 25. Rd2 {[%clk
0:01:11.7]} 25... Kf8 {[%clk 0:01:41]} 26. Rfd1 {[%clk 0:01:12.5]} 26... Ke7
{[%clk 0:01:42.2]} 27. Kf1 {[%clk 0:01:13.1]} 27... Rd7 {[%clk 0:01:38.3]} 28.
Ke2 {[%clk 0:01:13.1]} 28... Rcd8 {[%clk 0:01:35.9]} 29. f4 {[%clk 0:01:12.2]}
29... g6 {[%clk 0:01:29]} 30. Kf3 {[%clk 0:01:09.4]} 30... h5 {[%clk 0:01:28.6]}
31. Ke2 {[%clk 0:00:55.9]} 31... Rb8 {[%clk 0:01:11]} 32. Kf3 {[%clk 0:00:49.6]}
32... Kd8 {[%clk 0:01:11.7]} 33. Ke2 {[%clk 0:00:42.1]} 33... Kc7 {[%clk
0:01:11.6]} 34. Kf3 {[%clk 0:00:43.1]} 34... Kb6 {[%clk 0:01:10.6]} 35. Ke2
{[%clk 0:00:44.2]} 35... Kc5 {[%clk 0:01:11.4]} 36. Rd4 {[%clk 0:00:38.7]} 36...
Rbd8 {[%clk 0:01:12]} 37. Kf3 {[%clk 0:00:36.1]} 37... Nb6 {[%clk 0:01:08.8]}
38. Rxd7 {[%clk 0:00:18]} 38... Rxd7 {[%clk 0:01:09.7]} 39. Rxd7 {[%clk
0:00:18.7]} 39... Nxd7 {[%clk 0:01:11.4]} 40. g4 {[%clk 0:00:15.6]} 40... hxg4+
{[%clk 0:01:08]} 41. Kxg4 {[%clk 0:00:17.5]} 41... Nb6 {[%clk 0:01:09.1]} 42.
Kg5 {[%clk 0:00:16.4]} 42... Nc4 {[%clk 0:00:41.5]} 43. Bxg6 {[%clk 0:00:16.2]}
43... Nxb2 {[%clk 0:00:43.4]} 44. Bxf7 {[%clk 0:00:16.6]} 44... Nc4 {[%clk
0:00:36.5]} 45. h5 {[%clk 0:00:11.4]} 45... Nxa3 {[%clk 0:00:29.3]} 46. Bxe6
{[%clk 0:00:10.5]} 46... Nc4 {[%clk 0:00:29.8]} 47. Bxc4 {[%clk 0:00:11.1]}
47... Kxc4 {[%clk 0:00:25.6]} 48. h6 {[%clk 0:00:12.1]} 48... a3 {[%clk
0:00:27.4]} 49. h7 {[%clk 0:00:13.6]} 49... a2 {[%clk 0:00:29.3]} 50. h8=Q
{[%clk 0:00:14.9]} 50... a1=Q {[%clk 0:00:31.2]} 51. e6 {[%clk 0:00:06.1]} 51...
Qe1 {[%clk 0:00:11.2]} 52. Qe5 {[%clk 0:00:03.3]} 52... Qg3+ {[%clk 0:00:12.2]}
53. Kf5 {[%clk 0:00:03]} 53... Qh3+ {[%clk 0:00:10.9]} 54. Kf6 {[%clk
0:00:04.6]} 54... Qh8+ {[%clk 0:00:10.8]} 55. Ke7 {[%clk 0:00:05.2]} 55... Qh7+
{[%clk 0:00:06.8]} 56. Kd6 {[%clk 0:00:06.4]} 56... c5 {[%clk 0:00:07.3]} 57. e7
{[%clk 0:00:07.3]} 57... Qg6+ {[%clk 0:00:07.7]} 58. Qe6+ {[%clk 0:00:08.4]}
58... Qxe6+ {[%clk 0:00:09.3]} 59. Kxe6 {[%clk 0:00:10.3]} 59... Kxc3 {[%clk
0:00:10.8]} 60. e8=Q {[%clk 0:00:11.9]} 60... b4 {[%clk 0:00:12.5]} 61. Kd5
{[%clk 0:00:12.6]} 61... c4 {[%clk 0:00:13.8]} 62. Qb5 {[%clk 0:00:13.5]} 62...
b3 {[%clk 0:00:15.7]} 63. Qxc4+ {[%clk 0:00:14.7]} 63... Kb2 {[%clk 0:00:17.4]}
64. Kd4 {[%clk 0:00:15.1]} 64... Ka1 {[%clk 0:00:17]} 65. Qa4+ {[%clk
0:00:13.2]} 65... Kb1 {[%clk 0:00:17.8]} 66. Qxb3+ {[%clk 0:00:14]} 66... Ka1
{[%clk 0:00:18.6]} 67. Qc3+ {[%clk 0:00:14.8]} 67... Kb1 {[%clk 0:00:19.5]} 68.
Qd2 {[%clk 0:00:15.9]} 1-0

[Event "*** Titled Tuesday Blitz"]
[Site "Chess.com"]
[Date "2018.12.04"]
[Round "3"]
[White "CaptainCasanova"]
[Black "GhostOfGreenval"]
[Result "1/2-1/2"]
[WhiteElo "2657"]
[BlackElo "2841"]
[TimeControl "180+2"]
[EndTime "13:39:27 PST"]
[Termination "Game drawn by agreement"]

1. d4 {[%clk 0:03:01.9]} 1... Nf6 {[%clk 0:03:00.9]} 2. c4 {[%clk 0:02:58.1]}
2... c5 {[%clk 0:03:01.7]} 3. d5 {[%clk 0:02:58.8]} 3... b5 {[%clk 0:03:02.7]}
4. cxb5 {[%clk 0:02:52.3]} 4... a6 {[%clk 0:03:03.8]} 5. b6 {[%clk 0:02:53.9]}
5... d6 {[%clk 0:03:03.3]} 6. Nc3 {[%clk 0:02:55.8]} 6... g6 {[%clk 0:03:02.8]}
7. Nf3 {[%clk 0:02:57.7]} 7... Bg7 {[%clk 0:03:03.4]} 8. Nd2 {[%clk 0:02:59]}
8... Qxb6 {[%clk 0:02:51.5]} 9. e4 {[%clk 0:02:57]} 9... O-O {[%clk 0:02:52.4]}
10. Nc4 {[%clk 0:02:58]} 10... Qc7 {[%clk 0:02:53]} 11. Be2 {[%clk 0:02:59.1]}
11... Nbd7 {[%clk 0:02:49.5]} 12. O-O {[%clk 0:02:56.3]} 12... Nb6 {[%clk
0:02:50.5]} 13. Na3 {[%clk 0:02:54.1]} 13... Bb7 {[%clk 0:02:49.7]} 14. Be3
{[%clk 0:02:53.1]} 14... e6 {[%clk 0:02:47.7]} 15. Bf3 {[%clk 0:02:26.4]} 15...
Rfe8 {[%clk 0:02:38.8]} 16. Re1 {[%clk 0:02:20.7]} 16... exd5 {[%clk 0:02:37.2]}
17. exd5 {[%clk 0:02:19.3]} 17... Nfd7 {[%clk 0:02:31.5]} 18. g3 {[%clk
0:02:16]} 18... Ne5 {[%clk 0:02:30.2]} 19. Bg2 {[%clk 0:02:17]} 19... Nec4
{[%clk 0:02:31.4]} 20. Nxc4 {[%clk 0:02:13.4]} 20... Nxc4 {[%clk 0:02:33.3]} 21.
Bc1 {[%clk 0:02:08.5]} 21... Rxe1+ {[%clk 0:02:28.9]} 22. Qxe1 {[%clk
0:02:09.5]} 22... Qd7 {[%clk 0:02:27.4]} 23. Qe2 {[%clk 0:02:08.1]} 23... Nb6
{[%clk 0:02:17.7]} 24. Qd3 {[%clk 0:01:56.9]} 24... a5 {[%clk 0:02:16.7]} 25.
Bf4 {[%clk 0:01:46.3]} 25... Ba6 {[%clk 0:02:15.4]} 26. Qc2 {[%clk 0:01:47.9]}
26... Rb8 {[%clk 0:02:06.1]} 27. Re1 {[%clk 0:01:33]} 27... Re8 {[%clk
0:01:52.8]} 28. Rxe8+ {[%clk 0:01:27.5]} 28... Qxe8 {[%clk 0:01:54.7]} 29. h4
{[%clk 0:01:29.2]} 29... Qe7 {[%clk 0:01:45.8]} 30. Kh2 {[%clk 0:01:29.1]} 30...
Nc4 {[%clk 0:01:43.6]} 31. Ne4 {[%clk 0:01:16.3]} 31... f5 {[%clk 0:01:38.6]}
32. Ng5 {[%clk 0:00:54.5]} 32... Nxb2 {[%clk 0:01:34.4]} 33. Ne6 {[%clk
0:00:55.8]} 33... Bf6 {[%clk 0:01:27.6]} 34. Qb3 {[%clk 0:00:53]} 34... Qb7
{[%clk 0:01:22.9]} 35. Qxb7 {[%clk 0:00:46.5]} 35... Bxb7 {[%clk 0:01:24.8]} 36.
Bxd6 {[%clk 0:00:48.2]} 36... c4 {[%clk 0:01:24.4]} 37. Nc5 {[%clk 0:00:49.4]}
37... Bc8 {[%clk 0:01:20.2]} 38. Bf4 {[%clk 0:00:44.2]} 38... c3 {[%clk
0:01:20.3]} 39. d6 {[%clk 0:00:44.2]} 39... Bd4 {[%clk 0:01:15.8]} 40. d7 {[%clk
0:00:43.1]} 40... Bxd7 {[%clk 0:01:14.6]} 41. Nxd7 {[%clk 0:00:45]} 41... Nd3
{[%clk 0:01:13.3]} 42. Bd5+ {[%clk 0:00:42.6]} 42... Kg7 {[%clk 0:01:10]} 43.
Bb3 {[%clk 0:00:39.6]} 43... Nxf4 {[%clk 0:01:09.5]} 44. gxf4 {[%clk 0:00:40.3]}
44... Bxf2 {[%clk 0:01:11.4]} 45. Kg2 {[%clk 0:00:36.2]} 45... Bxh4 {[%clk
0:01:10.7]} 46. Kf3 {[%clk 0:00:38.1]} 46... h6 {[%clk 0:01:08.7]} 47. Bc2
{[%clk 0:00:30.8]} 47... Be7 {[%clk 0:01:06.7]} 48. Nb8 {[%clk 0:00:29.5]} 48...
Bc5 {[%clk 0:01:04.4]} 49. Nc6 {[%clk 0:00:29.3]} 49... Bb6 {[%clk 0:01:05.7]}
50. a4 {[%clk 0:00:29.6]} 50... Kf6 {[%clk 0:01:02.7]} 51. Nb8 {[%clk
0:00:30.7]} 51... Ke6 {[%clk 0:01:01.8]} 52. Nc6 {[%clk 0:00:29]} 52... Kf6
{[%clk 0:00:58.4]} 53. Ne5 {[%clk 0:00:29.3]} 53... Bc7 {[%clk 0:00:59]} 54.
Nd7+ {[%clk 0:00:22.5]} 54... Ke6 {[%clk 0:00:57.5]} 55. Nf8+ {[%clk 0:00:23]}
55... Kf7 {[%clk 0:00:58.4]} 56. Nd7 {[%clk 0:00:24.5]} 56... Ke6 {[%clk
0:00:57.3]} 57. Nf8+ {[%clk 0:00:25.2]} 57... Kf7 {[%clk 0:00:57.7]} 58. Nd7
{[%clk 0:00:25.8]} 58... Ke7 {[%clk 0:00:50.8]} 59. Nc5 {[%clk 0:00:23.1]} 59...
Kd6 {[%clk 0:00:48.4]} 60. Nd3 {[%clk 0:00:23.7]} 60... Kd5 {[%clk 0:00:47.8]}
61. Ke3 {[%clk 0:00:21.4]} 61... Bb6+ {[%clk 0:00:47.4]} 62. Kf3 {[%clk
0:00:23.1]} 62... Bc7 {[%clk 0:00:30.1]} 63. Ke3 {[%clk 0:00:22.7]} 63... g5
{[%clk 0:00:29]} 64. Bb3+ {[%clk 0:00:23.8]} 64... Kc6 {[%clk 0:00:26.3]} 65.
Kd4 {[%clk 0:00:25.2]} 65... g4 {[%clk 0:00:21.5]} 66. Kxc3 {[%clk 0:00:24.4]}
66... Kd7 {[%clk 0:00:20.7]} 67. Kd4 {[%clk 0:00:23.3]} 67... h5 {[%clk
0:00:19.6]} 1/2-1/2

[Event "*** Titled Tuesday Blitz"]
[Site "Chess.com"]
[Date "2018.12.04"]
[Round "3"]
[White "Yeytruyol"]
[Black "GukeshDommaraju"]
[Result "1/2-1/2"]
[WhiteElo "2476"]
[BlackElo "2690"]
[TimeControl "180+2"]
[EndTime "13:39:28 PST"]
[Termination "Game drawn by repetition"]

1. d4 {[%clk 0:03:01.9]} 1... Nf6 {[%clk 0:03:00.5]} 2. Nf3 {[%clk 0:03:00.9]}
2... g6 {[%clk 0:03:00.8]} 3. c4 {[%clk 0:03:00]} 3... Bg7 {[%clk 0:03:01.3]} 4.
Nc3 {[%clk 0:03:00]} 4... O-O {[%clk 0:03:02.3]} 5. e4 {[%clk 0:02:58.3]} 5...
d6 {[%clk 0:03:03.3]} 6. Be2 {[%clk 0:02:56.6]} 6... e5 {[%clk 0:03:01.9]} 7.
O-O {[%clk 0:02:57.6]} 7... Nc6 {[%clk 0:03:01.6]} 8. d5 {[%clk 0:02:57.1]} 8...
Ne7 {[%clk 0:03:02]} 9. Ne1 {[%clk 0:02:55.6]} 9... Nd7 {[%clk 0:03:00.3]} 10.
Nd3 {[%clk 0:02:51.7]} 10... f5 {[%clk 0:02:55]} 11. f3 {[%clk 0:02:49.1]} 11...
f4 {[%clk 0:02:53.6]} 12. b4 {[%clk 0:02:46.9]} 12... g5 {[%clk 0:02:52]} 13. c5
{[%clk 0:02:45.5]} 13... Ng6 {[%clk 0:02:46.5]} 14. Ba3 {[%clk 0:02:42.9]} 14...
Nf6 {[%clk 0:02:45.4]} 15. Rc1 {[%clk 0:02:41.6]} 15... Rf7 {[%clk 0:02:45.5]}
16. b5 {[%clk 0:02:39.5]} 16... h5 {[%clk 0:02:39.7]} 17. Nb2 {[%clk 0:02:05.2]}
17... Bf8 {[%clk 0:02:37.2]} 18. Nc4 {[%clk 0:02:01.7]} 18... dxc5 {[%clk
0:02:34.6]} 19. Bb2 {[%clk 0:01:49.6]} 19... b6 {[%clk 0:02:30]} 20. a4 {[%clk
0:01:48.1]} 20... g4 {[%clk 0:02:24.3]} 21. Nb1 {[%clk 0:01:40.7]} 21... Bd6
{[%clk 0:02:16.4]} 22. Nbd2 {[%clk 0:01:41.7]} 22... g3 {[%clk 0:02:09.8]} 23.
hxg3 {[%clk 0:01:31.1]} 23... fxg3 {[%clk 0:02:09.5]} 24. f4 {[%clk 0:01:30]}
24... Nxe4 {[%clk 0:01:42.9]} 25. Nxe4 {[%clk 0:01:25.3]} 25... Qh4 {[%clk
0:01:36.5]} 26. Nxg3 {[%clk 0:01:25.3]} 26... Qxg3 {[%clk 0:01:37.3]} 27. Rc3
{[%clk 0:01:21.7]} 27... Qh4 {[%clk 0:01:32]} 28. fxe5 {[%clk 0:01:02.9]} 28...
Nxe5 {[%clk 0:00:55.9]} 29. Rxf7 {[%clk 0:00:52.7]} 29... Nxf7 {[%clk
0:00:53.2]} 30. Nxd6 {[%clk 0:00:18.4]} 30... cxd6 {[%clk 0:00:53.3]} 31. Rc4
{[%clk 0:00:17.7]} 31... Qg5 {[%clk 0:00:47.4]} 32. Bxh5 {[%clk 0:00:19]} 32...
Bf5 {[%clk 0:00:47.8]} 33. Bxf7+ {[%clk 0:00:18.6]} 33... Kxf7 {[%clk
0:00:48.5]} 34. Qf3 {[%clk 0:00:14.6]} 34... Re8 {[%clk 0:00:37]} 35. Rf4 {[%clk
0:00:14.2]} 35... Kg6 {[%clk 0:00:32.2]} 36. g4 {[%clk 0:00:15]} 36... Re1+
{[%clk 0:00:28.9]} 37. Kf2 {[%clk 0:00:15.9]} 37... Qh4+ {[%clk 0:00:29.5]} 38.
Qg3 {[%clk 0:00:12]} 38... Re2+ {[%clk 0:00:29]} 39. Kxe2 {[%clk 0:00:11.9]}
39... Qxg3 {[%clk 0:00:29.7]} 40. gxf5+ {[%clk 0:00:13.2]} 40... Kf7 {[%clk
0:00:30.3]} 41. Rf3 {[%clk 0:00:14.7]} 41... Qg2+ {[%clk 0:00:30.5]} 42. Rf2
{[%clk 0:00:16.1]} 42... Qe4+ {[%clk 0:00:31]} 43. Kf1 {[%clk 0:00:16.8]} 43...
Qxd5 {[%clk 0:00:31.2]} 44. f6 {[%clk 0:00:15.3]} 44... Qc4+ {[%clk 0:00:31.6]}
45. Kg1 {[%clk 0:00:16.2]} 45... Qxa4 {[%clk 0:00:31.1]} 46. Rg2 {[%clk
0:00:17.6]} 46... Qd1+ {[%clk 0:00:26.4]} 47. Kh2 {[%clk 0:00:18.4]} 47... Qh5+
{[%clk 0:00:25.7]} 48. Kg1 {[%clk 0:00:19.2]} 48... Ke6 {[%clk 0:00:23.2]} 49.
Kf1 {[%clk 0:00:17.5]} 49... Qd1+ {[%clk 0:00:23.1]} 50. Kf2 {[%clk 0:00:18.2]}
50... Qd2+ {[%clk 0:00:22.9]} 51. Kg1 {[%clk 0:00:19.5]} 51... Qe1+ {[%clk
0:00:23]} 52. Kh2 {[%clk 0:00:20.2]} 52... Qh4+ {[%clk 0:00:24.3]} 53. Kg1
{[%clk 0:00:21.2]} 53... c4 {[%clk 0:00:26]} 54. Re2+ {[%clk 0:00:20.2]} 54...
Kd5 {[%clk 0:00:24.6]} 55. f7 {[%clk 0:00:19.9]} 55... Qg4+ {[%clk 0:00:22.6]}
56. Kf1 {[%clk 0:00:21.3]} 56... Qh3+ {[%clk 0:00:21.3]} 57. Ke1 {[%clk
0:00:21.6]} 57... Qf5 {[%clk 0:00:20.7]} 58. Rf2 {[%clk 0:00:21.7]} 58... Qb1+
{[%clk 0:00:20.7]} 59. Ke2 {[%clk 0:00:22.8]} 59... Qxb2+ {[%clk 0:00:21.4]} 60.
Kf1 {[%clk 0:00:24.2]} 60... Qc1+ {[%clk 0:00:21.8]} 61. Kg2 {[%clk 0:00:25.4]}
61... Qg5+ {[%clk 0:00:22]} 62. Kf1 {[%clk 0:00:26.6]} 62... Qc1+ {[%clk
0:00:22.3]} 63. Kg2 {[%clk 0:00:27.5]} 63... Qg5+ {[%clk 0:00:23.1]} 64. Kf1
{[%clk 0:00:28.7]} 64... Qc1+ {[%clk 0:00:10.5]} 65. Kg2 {[%clk 0:00:29.6]}
65... Qg5+ {[%clk 0:00:11]} 1/2-1/2